[Event "November 21 Early 2023"]
[Site "https://www.chess.com"]
[Date "2023.11.21"]
[Round "8"]
[White "Zhigalko, Sergei"]
[Black "Nagy, Gabor"]
[Result "1/2-1/2"]
[Board "23"]
[TimeControl "180+1"]
[WhiteFideId "13502956"]
[BlackFideId "737119"]
[WhiteElo "2616"]
[BlackElo "2505"]
[WhiteTeam "BLR"]
[BlackTeam "HUN"]
[WhiteClock "0:00:19"]
[BlackClock "0:00:55"]

1. e4 {[%clk 0:03:00]}  e5 {[%clk 0:02:47]} 2. Nf3 {[%clk 0:03:01]}  d6 {[%clk 0:02:44]} 3. d4 {[%clk 0:03:00]}  exd4 {[%clk 0:02:45]} 4. Qxd4 {[%clk 0:03:01]}  Nf6 {[%clk 0:02:43]} 5. Nc3 {[%clk 0:03:00]}  Nc6 {[%clk 0:02:43]} 6. Bb5 {[%clk 0:03:00]}  Be7 {[%clk 0:02:43]} 7. e5 {[%clk 0:02:55]}  Ng4 {[%clk 0:02:36]} 8. exd6 {[%clk 0:02:32]}  Qxd6 {[%clk 0:02:37]} 9. O-O {[%clk 0:02:10]}  O-O {[%clk 0:02:30]} 10. Qxd6 {[%clk 0:02:01]}  Bxd6 {[%clk 0:02:31]} 11. Ne4 {[%clk 0:01:54]}  Nge5 {[%clk 0:02:29]} 12. Nxd6 {[%clk 0:01:45]}  Nxf3+ {[%clk 0:02:24]} 13. gxf3 {[%clk 0:01:46]}  cxd6 {[%clk 0:02:25]} 14. Rd1 {[%clk 0:01:45]}  Ne5 {[%clk 0:02:11]} 15. f4 {[%clk 0:01:32]}  Nf3+ {[%clk 0:02:06]} 16. Kh1 {[%clk 0:01:16]}  Rd8 {[%clk 0:01:37]} 17. Be3 {[%clk 0:01:13]}  Bg4 {[%clk 0:01:35]} 18. Be2 {[%clk 0:01:02]}  Nxh2 {[%clk 0:01:13]} 19. Kxh2 {[%clk 0:00:55]}  Bxe2 {[%clk 0:01:12]} 20. Rd2 {[%clk 0:00:55]}  Bf3 {[%clk 0:01:11]} 21. Kg3 {[%clk 0:00:55]}  Be4 {[%clk 0:01:09]} 22. Rad1 {[%clk 0:00:53]}  Rac8 {[%clk 0:01:04]} 23. Rxd6 {[%clk 0:00:39]}  Rxd6 {[%clk 0:01:05]} 24. Rxd6 {[%clk 0:00:39]}  Bxc2 {[%clk 0:01:01]} 25. Bxa7 {[%clk 0:00:38]}  h5 {[%clk 0:01:01]} 26. Bb6 {[%clk 0:00:26]}  f6 {[%clk 0:00:55]} 27. Rd8+ {[%clk 0:00:23]}  Rxd8 {[%clk 0:00:54]} 28. Bxd8 {[%clk 0:00:19]}  Kf7 {[%clk 0:00:55]} 1/2-1/2

[Event "November 21 Early 2023"]
[Site "https://www.chess.com"]
[Date "2023.11.21"]
[Round "8"]
[White "Kamsky, Gata"]
[Black "Goltsev, Dmitry"]
[Result "1-0"]
[Board "26"]
[TimeControl "180+1"]
[WhiteFideId "2000024"]
[BlackFideId "24176710"]
[WhiteElo "2660"]
[BlackElo "2370"]
[WhiteTeam "USA"]
[BlackTeam "RUS"]
[WhiteClock "0:00:48"]
[BlackClock "0:00:01"]

1. d4 {[%clk 0:03:00]}  Nf6 {[%clk 0:02:57]} 2. Nf3 {[%clk 0:03:00]}  e6 {[%clk 0:02:56]} 3. Bf4 {[%clk 0:02:59]}  b6 {[%clk 0:02:56]} 4. e3 {[%clk 0:03:00]}  Bb7 {[%clk 0:02:55]} 5. h3 {[%clk 0:03:00]}  d6 {[%clk 0:02:52]} 6. a4 {[%clk 0:02:59]}  a5 {[%clk 0:02:52]} 7. Nbd2 {[%clk 0:02:59]}  g6 {[%clk 0:02:52]} 8. Bb5+ {[%clk 0:02:59]}  Nbd7 {[%clk 0:02:51]} 9. O-O {[%clk 0:02:58]}  Bg7 {[%clk 0:02:51]} 10. Re1 {[%clk 0:02:59]}  Qe7 {[%clk 0:02:49]} 11. e4 {[%clk 0:02:59]}  O-O {[%clk 0:02:38]} 12. c3 {[%clk 0:02:55]}  e5 {[%clk 0:02:34]} 13. Bg5 {[%clk 0:02:55]}  h6 {[%clk 0:02:30]} 14. Bh4 {[%clk 0:02:55]}  g5 {[%clk 0:02:30]} 15. Bg3 {[%clk 0:02:55]}  Nh5 {[%clk 0:02:27]} 16. Nf1 {[%clk 0:02:42]}  Nf4 {[%clk 0:02:24]} 17. Bxd7 {[%clk 0:02:35]}  Qxd7 {[%clk 0:02:11]} 18. dxe5 {[%clk 0:02:35]}  Rad8 {[%clk 0:01:39]} 19. exd6 {[%clk 0:02:22]}  Qe6 {[%clk 0:01:19]} 20. Bxf4 {[%clk 0:01:57]}  gxf4 {[%clk 0:01:19]} 21. Qc1 {[%clk 0:01:57]}  Qxd6 {[%clk 0:01:14]} 22. e5 {[%clk 0:01:55]}  Qg6 {[%clk 0:01:02]} 23. Qxf4 {[%clk 0:01:53]}  Rd3 {[%clk 0:00:59]} 24. Nh4 {[%clk 0:01:43]}  Qc6 {[%clk 0:00:40]} 25. Ng3 {[%clk 0:01:33]}  Rfd8 {[%clk 0:00:30]} 26. Ne4 {[%clk 0:01:25]}  Qe6 {[%clk 0:00:15]} 27. Nf6+ {[%clk 0:01:21]}  Kh8 {[%clk 0:00:15]} 28. Nf5 {[%clk 0:01:08]}  Qc6 {[%clk 0:00:08]} 29. f3 {[%clk 0:01:08]}  Rd2 {[%clk 0:00:06]} 30. Nxg7 {[%clk 0:01:04]}  Kxg7 {[%clk 0:00:07]} 31. Kh1 {[%clk 0:00:51]}  R8d3 {[%clk 0:00:07]} 32. Re4 {[%clk 0:00:48]}  Qe6 {[%clk 0:00:01]} 33. Qg3+ {[%clk 0:00:48]} 1-0

[Event "November 21 Early 2023"]
[Site "https://www.chess.com"]
[Date "2023.11.21"]
[Round "8"]
[White "Matinian, Nikita"]
[Black "Licznerski, Lukasz"]
[Result "0-1"]
[Board "29"]
[TimeControl "180+1"]
[WhiteFideId "24129100"]
[BlackFideId "1179250"]
[WhiteElo "2417"]
[BlackElo "2436"]
[WhiteTeam "FID"]
[BlackTeam "POL"]
[WhiteClock "0:00:03"]
[BlackClock "0:00:11"]

1. e4 {[%clk 0:03:00]}  c6 {[%clk 0:03:00]} 2. Nc3 {[%clk 0:03:00]}  d5 {[%clk 0:03:01]} 3. Nf3 {[%clk 0:03:01]}  Bg4 {[%clk 0:03:00]} 4. h3 {[%clk 0:03:01]}  Bh5 {[%clk 0:03:00]} 5. exd5 {[%clk 0:02:58]}  cxd5 {[%clk 0:03:01]} 6. g4 {[%clk 0:02:58]}  Bg6 {[%clk 0:03:01]} 7. Ne5 {[%clk 0:02:58]}  Nc6 {[%clk 0:03:02]} 8. d4 {[%clk 0:02:51]}  e6 {[%clk 0:03:01]} 9. Bb5 {[%clk 0:02:39]}  Rc8 {[%clk 0:03:01]} 10. Be3 {[%clk 0:02:33]}  Bb4 {[%clk 0:02:54]} 11. Qd2 {[%clk 0:01:58]}  Ne7 {[%clk 0:02:46]} 12. a3 {[%clk 0:01:56]}  Qa5 {[%clk 0:02:40]} 13. Rc1 {[%clk 0:01:36]}  Bxc3 {[%clk 0:02:40]} 14. Bxc6+ {[%clk 0:01:33]}  Nxc6 {[%clk 0:02:39]} 15. bxc3 {[%clk 0:01:23]}  Nxe5 {[%clk 0:02:27]} 16. dxe5 {[%clk 0:01:24]}  Qxc3 {[%clk 0:01:59]} 17. Bd4 {[%clk 0:01:23]}  Qf3 {[%clk 0:01:48]} 18. Rh2 {[%clk 0:01:23]}  b6 {[%clk 0:01:43]} 19. c3 {[%clk 0:01:23]}  h5 {[%clk 0:01:37]} 20. g5 {[%clk 0:01:23]}  h4 {[%clk 0:01:33]} 21. Qe3 {[%clk 0:01:22]}  Qf5 {[%clk 0:01:33]} 22. f4 {[%clk 0:01:19]}  O-O {[%clk 0:01:26]} 23. Rb2 {[%clk 0:01:19]}  Rc4 {[%clk 0:01:26]} 24. Rb4 {[%clk 0:01:19]}  Rfc8 {[%clk 0:01:26]} 25. Kd2 {[%clk 0:01:04]}  R8c6 {[%clk 0:01:12]} 26. Ke2 {[%clk 0:00:47]}  Bh5+ {[%clk 0:00:58]} 27. Kf2 {[%clk 0:00:47]}  Kh7 {[%clk 0:00:59]} 28. Kg2 {[%clk 0:00:45]}  Kg6 {[%clk 0:00:57]} 29. Re1 {[%clk 0:00:38]}  Qc2+ {[%clk 0:00:47]} 30. Qf2 {[%clk 0:00:36]}  Rxc3 {[%clk 0:00:31]} 31. Bxc3 {[%clk 0:00:35]}  Rxc3 {[%clk 0:00:32]} 32. f5+ {[%clk 0:00:24]}  Qxf5 {[%clk 0:00:29]} 33. Qxf5+ {[%clk 0:00:21]}  Kxf5 {[%clk 0:00:30]} 34. Rxh4 {[%clk 0:00:18]}  Kxg5 {[%clk 0:00:27]} 35. Ra4 {[%clk 0:00:18]}  a5 {[%clk 0:00:26]} 36. Rb1 {[%clk 0:00:17]}  Kf5 {[%clk 0:00:17]} 37. Rxb6 {[%clk 0:00:16]}  Kxe5 {[%clk 0:00:16]} 38. Rxa5 {[%clk 0:00:15]}  Bf3+ {[%clk 0:00:14]} 39. Kf2 {[%clk 0:00:14]}  Be4 {[%clk 0:00:15]} 40. h4 {[%clk 0:00:13]}  Rh3 {[%clk 0:00:13]} 41. a4 {[%clk 0:00:13]}  Rxh4 {[%clk 0:00:13]} 42. Ra7 {[%clk 0:00:12]}  Rh2+ {[%clk 0:00:13]} 43. Kg1 {[%clk 0:00:10]}  Rg2+ {[%clk 0:00:11]} 44. Kf1 {[%clk 0:00:11]}  f5 {[%clk 0:00:12]} 45. Re7 {[%clk 0:00:10]}  Ra2 {[%clk 0:00:11]} 46. Rbxe6+ {[%clk 0:00:07]}  Kf4 {[%clk 0:00:11]} 47. Ra6 {[%clk 0:00:03]}  Bd3+ {[%clk 0:00:11]} 0-1

[Event "November 21 Early 2023"]
[Site "https://www.chess.com"]
[Date "2023.11.21"]
[Round "8"]
[White "Shuvalova, Polina"]
[Black "Galaktionov, Artem"]
[Result "1/2-1/2"]
[Board "31"]
[TimeControl "180+1"]
[WhiteFideId "24171760"]
[BlackFideId "24175471"]
[WhiteElo "2342"]
[BlackElo "2367"]
[WhiteTeam "RUS"]
[BlackTeam "RUS"]
[WhiteClock "0:00:10"]
[BlackClock "0:00:11"]

1. e4 {[%clk 0:03:00]}  c6 {[%clk 0:03:00]} 2. d4 {[%clk 0:03:00]}  g6 {[%clk 0:03:01]} 3. Nf3 {[%clk 0:02:59]}  Bg7 {[%clk 0:03:01]} 4. Bd3 {[%clk 0:02:58]}  d6 {[%clk 0:03:02]} 5. O-O {[%clk 0:02:57]}  Nd7 {[%clk 0:03:02]} 6. Re1 {[%clk 0:02:57]}  e5 {[%clk 0:03:03]} 7. c3 {[%clk 0:02:57]}  Ngf6 {[%clk 0:03:03]} 8. h3 {[%clk 0:02:56]}  O-O {[%clk 0:03:03]} 9. Nbd2 {[%clk 0:02:55]}  Qc7 {[%clk 0:03:03]} 10. a4 {[%clk 0:02:54]}  a5 {[%clk 0:03:02]} 11. Qc2 {[%clk 0:02:47]}  b6 {[%clk 0:03:02]} 12. Nf1 {[%clk 0:02:47]}  Bb7 {[%clk 0:03:02]} 13. Be3 {[%clk 0:02:42]}  Rfe8 {[%clk 0:03:01]} 14. N1d2 {[%clk 0:02:41]}  d5 {[%clk 0:02:54]} 15. dxe5 {[%clk 0:02:35]}  Nxe4 {[%clk 0:02:52]} 16. Nxe4 {[%clk 0:02:28]}  dxe4 {[%clk 0:02:53]} 17. Bxe4 {[%clk 0:02:28]}  Nxe5 {[%clk 0:02:53]} 18. Nxe5 {[%clk 0:02:27]}  Bxe5 {[%clk 0:02:54]} 19. Rad1 {[%clk 0:02:16]}  Ba6 {[%clk 0:02:33]} 20. Kh1 {[%clk 0:02:12]}  Rad8 {[%clk 0:02:30]} 21. Qb3 {[%clk 0:02:03]}  Rxd1 {[%clk 0:02:24]} 22. Rxd1 {[%clk 0:02:00]}  b5 {[%clk 0:02:16]} 23. Bf3 {[%clk 0:01:54]}  Rb8 {[%clk 0:02:13]} 24. axb5 {[%clk 0:01:51]}  cxb5 {[%clk 0:02:04]} 25. Rd5 {[%clk 0:01:31]}  b4 {[%clk 0:01:57]} 26. Qd1 {[%clk 0:01:05]}  bxc3 {[%clk 0:01:53]} 27. bxc3 {[%clk 0:01:05]}  Qxc3 {[%clk 0:01:44]} 28. Rc5 {[%clk 0:01:01]}  Qb2 {[%clk 0:01:29]} 29. Rxa5 {[%clk 0:01:01]}  Bc4 {[%clk 0:01:28]} 30. g3 {[%clk 0:00:54]}  Bb3 {[%clk 0:00:52]} 31. Qc1 {[%clk 0:00:33]}  Qxc1+ {[%clk 0:00:40]} 32. Bxc1 {[%clk 0:00:34]}  Bd4 {[%clk 0:00:40]} 33. Kg2 {[%clk 0:00:32]}  Rc8 {[%clk 0:00:38]} 34. Bg5 {[%clk 0:00:29]}  Rc2 {[%clk 0:00:31]} 35. Bh6 {[%clk 0:00:15]}  Rxf2+ {[%clk 0:00:31]} 36. Kh1 {[%clk 0:00:16]}  f5 {[%clk 0:00:25]} 37. Bd5+ {[%clk 0:00:13]}  Bxd5+ {[%clk 0:00:25]} 38. Rxd5 {[%clk 0:00:14]}  Bf6 {[%clk 0:00:24]} 39. Bf4 {[%clk 0:00:13]}  h5 {[%clk 0:00:17]} 40. Kg1 {[%clk 0:00:10]}  Re2 {[%clk 0:00:17]} 41. h4 {[%clk 0:00:10]}  Kf7 {[%clk 0:00:17]} 42. Rd7+ {[%clk 0:00:08]}  Ke6 {[%clk 0:00:17]} 43. Rd2 {[%clk 0:00:07]}  Rxd2 {[%clk 0:00:15]} 44. Bxd2 {[%clk 0:00:08]}  Kd5 {[%clk 0:00:15]} 45. Kf2 {[%clk 0:00:08]}  Ke4 {[%clk 0:00:16]} 46. Bf4 {[%clk 0:00:08]}  Be5 {[%clk 0:00:16]} 47. Bh6 {[%clk 0:00:06]}  f4 {[%clk 0:00:16]} 48. gxf4 {[%clk 0:00:06]}  Bxf4 {[%clk 0:00:17]} 49. Bf8 {[%clk 0:00:05]}  Be3+ {[%clk 0:00:15]} 50. Kg3 {[%clk 0:00:05]}  Bd2 {[%clk 0:00:15]} 51. Be7 {[%clk 0:00:04]}  Be1+ {[%clk 0:00:15]} 52. Kg2 {[%clk 0:00:04]}  Kf4 {[%clk 0:00:15]} 53. Kh3 {[%clk 0:00:04]}  Kf3 {[%clk 0:00:14]} 54. Bd8 {[%clk 0:00:04]}  Bd2 {[%clk 0:00:14]} 55. Be7 {[%clk 0:00:04]}  Bf4 {[%clk 0:00:14]} 56. Bd8 {[%clk 0:00:05]}  Bg3 {[%clk 0:00:14]} 57. Be7 {[%clk 0:00:05]}  Bf2 {[%clk 0:00:13]} 58. Bf6 {[%clk 0:00:05]}  Ke4 {[%clk 0:00:14]} 59. Bd8 {[%clk 0:00:05]}  Kf5 {[%clk 0:00:14]} 60. Be7 {[%clk 0:00:06]}  Bd4 {[%clk 0:00:15]} 61. Bd8 {[%clk 0:00:06]}  Bf6 {[%clk 0:00:15]} 62. Bb6 {[%clk 0:00:07]}  Kf4 {[%clk 0:00:14]} 63. Bc7+ {[%clk 0:00:07]}  Kf3 {[%clk 0:00:14]} 64. Bd6 {[%clk 0:00:08]}  Bd4 {[%clk 0:00:12]} 65. Be7 {[%clk 0:00:08]}  Be3 {[%clk 0:00:12]} 66. Bd8 {[%clk 0:00:08]}  Bf4 {[%clk 0:00:12]} 67. Be7 {[%clk 0:00:09]}  Bg3 {[%clk 0:00:12]} 68. Bd8 {[%clk 0:00:09]}  Bxh4 {[%clk 0:00:11]} 69. Bxh4 {[%clk 0:00:09]}  g5 {[%clk 0:00:10]} 70. Bxg5 {[%clk 0:00:09]}  h4 {[%clk 0:00:11]} 71. Bxh4 {[%clk 0:00:10]} 1/2-1/2

[Event "November 21 Early 2023"]
[Site "https://www.chess.com"]
[Date "2023.11.21"]
[Round "8"]
[White "Dragun, Kamil"]
[Black "Hilary46"]
[Result "0-1"]
[Board "35"]
[TimeControl "180+1"]
[WhiteFideId "1134167"]
[WhiteElo "2551"]
[BlackElo "2637"]
[WhiteTeam "POL"]
[WhiteClock "0:01:09"]
[BlackClock "0:01:18"]

1. d4 {[%clk 0:03:00]}  d5 {[%clk 0:02:59]} 2. c4 {[%clk 0:03:01]}  e6 {[%clk 0:03:00]} 3. Nc3 {[%clk 0:02:59]}  c6 {[%clk 0:03:00]} 4. e3 {[%clk 0:02:57]}  Nf6 {[%clk 0:03:00]} 5. Nf3 {[%clk 0:02:57]}  Nbd7 {[%clk 0:03:01]} 6. Be2 {[%clk 0:02:57]}  Bd6 {[%clk 0:03:00]} 7. O-O {[%clk 0:02:58]}  O-O {[%clk 0:03:00]} 8. b3 {[%clk 0:02:58]}  b6 {[%clk 0:03:00]} 9. Bb2 {[%clk 0:02:58]}  Bb7 {[%clk 0:03:01]} 10. Bd3 {[%clk 0:02:59]}  c5 {[%clk 0:03:01]} 11. cxd5 {[%clk 0:02:53]}  exd5 {[%clk 0:03:01]} 12. Rc1 {[%clk 0:02:49]}  Re8 {[%clk 0:03:00]} 13. Bf5 {[%clk 0:02:44]}  a6 {[%clk 0:02:41]} 14. Qc2 {[%clk 0:02:37]}  g6 {[%clk 0:02:33]} 15. Bh3 {[%clk 0:02:36]}  c4 {[%clk 0:02:25]} 16. bxc4 {[%clk 0:02:24]}  dxc4 {[%clk 0:02:26]} 17. d5 {[%clk 0:02:25]}  b5 {[%clk 0:02:24]} 18. Nd4 {[%clk 0:01:43]}  b4 {[%clk 0:02:17]} 19. Nc6 {[%clk 0:01:43]}  Qc7 {[%clk 0:02:06]} 20. f4 {[%clk 0:01:43]}  Nc5 {[%clk 0:01:41]} 21. Nb5 {[%clk 0:01:33]}  axb5 {[%clk 0:01:39]} 22. Bxf6 {[%clk 0:01:34]}  Bxc6 {[%clk 0:01:33]} 23. dxc6 {[%clk 0:01:35]}  Rxe3 {[%clk 0:01:32]} 24. Bd4 {[%clk 0:01:27]}  Re4 {[%clk 0:01:23]} 25. Rcd1 {[%clk 0:01:22]}  Nd3 {[%clk 0:01:22]} 26. Rxd3 {[%clk 0:01:18]}  cxd3 {[%clk 0:01:23]} 27. Qxd3 {[%clk 0:01:19]}  Qxc6 {[%clk 0:01:22]} 28. Kh1 {[%clk 0:01:09]}  Qd5 {[%clk 0:01:18]} 0-1

[Event "November 21 Early 2023"]
[Site "https://www.chess.com"]
[Date "2023.11.21"]
[Round "8"]
[White "Pakleza, Zbigniew"]
[Black "Vlassov, Nikolai"]
[Result "1-0"]
[Board "36"]
[TimeControl "180+1"]
[WhiteFideId "1119290"]
[BlackFideId "4103360"]
[WhiteElo "2410"]
[BlackElo "2324"]
[WhiteTeam "POL"]
[BlackTeam "FID"]
[WhiteClock "0:00:06"]
[BlackClock "0:00:00"]

1. d4 {[%clk 0:03:00]}  Nf6 {[%clk 0:02:57]} 2. Nf3 {[%clk 0:03:01]}  e6 {[%clk 0:02:57]} 3. Bf4 {[%clk 0:03:01]}  c5 {[%clk 0:02:57]} 4. c3 {[%clk 0:03:01]}  b6 {[%clk 0:02:55]} 5. e3 {[%clk 0:03:01]}  Bb7 {[%clk 0:02:55]} 6. Nbd2 {[%clk 0:03:01]}  Be7 {[%clk 0:02:54]} 7. h3 {[%clk 0:03:01]}  h6 {[%clk 0:02:49]} 8. a4 {[%clk 0:03:00]}  d6 {[%clk 0:02:49]} 9. Nc4 {[%clk 0:03:00]}  Ne4 {[%clk 0:02:46]} 10. Bd3 {[%clk 0:02:53]}  d5 {[%clk 0:02:33]} 11. Nce5 {[%clk 0:02:48]}  O-O {[%clk 0:02:22]} 12. O-O {[%clk 0:02:41]}  Nd7 {[%clk 0:02:17]} 13. Nxd7 {[%clk 0:02:35]}  Qxd7 {[%clk 0:02:17]} 14. Ne5 {[%clk 0:02:36]}  Qc8 {[%clk 0:02:15]} 15. Qe2 {[%clk 0:02:26]}  Bf6 {[%clk 0:02:07]} 16. a5 {[%clk 0:02:12]}  Bxe5 {[%clk 0:02:01]} 17. Bxe5 {[%clk 0:02:11]}  c4 {[%clk 0:01:59]} 18. Bc2 {[%clk 0:02:06]}  f6 {[%clk 0:01:53]} 19. Bh2 {[%clk 0:02:05]}  Bc6 {[%clk 0:01:49]} 20. f3 {[%clk 0:01:58]}  Ng5 {[%clk 0:01:46]} 21. e4 {[%clk 0:01:58]}  bxa5 {[%clk 0:01:33]} 22. Rxa5 {[%clk 0:01:48]}  Qb7 {[%clk 0:01:32]} 23. exd5 {[%clk 0:01:45]}  Bxd5 {[%clk 0:01:30]} 24. Bd6 {[%clk 0:01:27]}  Rfd8 {[%clk 0:01:26]} 25. Bb4 {[%clk 0:01:25]}  Rd7 {[%clk 0:01:18]} 26. h4 {[%clk 0:01:17]}  Nf7 {[%clk 0:01:16]} 27. Be4 {[%clk 0:01:16]}  Re8 {[%clk 0:01:02]} 28. Bxd5 {[%clk 0:01:10]}  Rxd5 {[%clk 0:01:00]} 29. Rfa1 {[%clk 0:00:57]}  Rxa5 {[%clk 0:00:55]} 30. Rxa5 {[%clk 0:00:58]}  e5 {[%clk 0:00:51]} 31. Qxc4 {[%clk 0:00:47]}  e4 {[%clk 0:00:42]} 32. Qe2 {[%clk 0:00:37]}  Qc6 {[%clk 0:00:34]} 33. Rxa7 {[%clk 0:00:25]}  exf3 {[%clk 0:00:33]} 34. Qxf3 {[%clk 0:00:26]}  Qxf3 {[%clk 0:00:17]} 35. gxf3 {[%clk 0:00:25]}  Re2 {[%clk 0:00:18]} 36. Ba3 {[%clk 0:00:21]}  g5 {[%clk 0:00:18]} 37. h5 {[%clk 0:00:16]}  f5 {[%clk 0:00:14]} 38. Ra6 {[%clk 0:00:09]}  f4 {[%clk 0:00:11]} 39. c4 {[%clk 0:00:08]}  Kh7 {[%clk 0:00:09]} 40. Ra7 {[%clk 0:00:07]}  Kg8 {[%clk 0:00:08]} 41. c5 {[%clk 0:00:05]}  g4 {[%clk 0:00:07]} 42. c6 {[%clk 0:00:05]}  Ng5 {[%clk 0:00:00]} 43. c7 {[%clk 0:00:06]} 1-0

[Event "November 21 Early 2023"]
[Site "https://www.chess.com"]
[Date "2023.11.21"]
[Round "8"]
[White "Molina, Roberto Junio Brito"]
[Black "gueraumasague"]
[Result "1-0"]
[Board "38"]
[TimeControl "180+1"]
[WhiteFideId "2109450"]
[WhiteElo "2389"]
[BlackElo "2604"]
[WhiteTeam "BRA"]
[WhiteClock "0:00:12"]
[BlackClock "0:00:00"]

1. d4 {[%clk 0:03:00]}  g6 {[%clk 0:02:59]} 2. e4 {[%clk 0:02:59]}  Nf6 {[%clk 0:02:58]} 3. Nc3 {[%clk 0:02:58]}  d5 {[%clk 0:02:59]} 4. e5 {[%clk 0:02:41]}  Ne4 {[%clk 0:02:59]} 5. Nxe4 {[%clk 0:02:36]}  dxe4 {[%clk 0:03:00]} 6. c3 {[%clk 0:02:34]}  Bg7 {[%clk 0:03:00]} 7. f4 {[%clk 0:02:34]}  exf3 {[%clk 0:02:56]} 8. Nxf3 {[%clk 0:02:33]}  O-O {[%clk 0:02:53]} 9. Bc4 {[%clk 0:02:33]}  c5 {[%clk 0:02:46]} 10. dxc5 {[%clk 0:02:19]}  Qc7 {[%clk 0:02:45]} 11. e6 {[%clk 0:02:19]}  f5 {[%clk 0:02:19]} 12. Be3 {[%clk 0:02:17]}  Nc6 {[%clk 0:02:14]} 13. Qe2 {[%clk 0:02:11]}  Ne5 {[%clk 0:01:46]} 14. Nxe5 {[%clk 0:02:08]}  Qxe5 {[%clk 0:01:47]} 15. Bd4 {[%clk 0:02:06]}  Qf4 {[%clk 0:01:41]} 16. g3 {[%clk 0:02:00]}  Qg5 {[%clk 0:01:20]} 17. Bxg7 {[%clk 0:01:57]}  Kxg7 {[%clk 0:01:20]} 18. Qe5+ {[%clk 0:01:55]}  Qf6 {[%clk 0:01:16]} 19. Qe3 {[%clk 0:01:49]}  f4 {[%clk 0:01:12]} 20. Qxf4 {[%clk 0:01:43]}  Qxf4 {[%clk 0:01:13]} 21. gxf4 {[%clk 0:01:44]}  Rxf4 {[%clk 0:01:14]} 22. Bb3 {[%clk 0:01:33]}  Bxe6 {[%clk 0:01:14]} 23. O-O-O {[%clk 0:01:28]}  Bg4 {[%clk 0:01:08]} 24. Rde1 {[%clk 0:01:24]}  Kf6 {[%clk 0:01:05]} 25. Bd5 {[%clk 0:01:21]}  Rc8 {[%clk 0:00:53]} 26. Bxb7 {[%clk 0:01:04]}  Rxc5 {[%clk 0:00:53]} 27. Be4 {[%clk 0:00:55]}  h5 {[%clk 0:00:46]} 28. Rhg1 {[%clk 0:00:53]}  e5 {[%clk 0:00:33]} 29. Rg2 {[%clk 0:00:46]}  Bf5 {[%clk 0:00:19]} 30. Bc2 {[%clk 0:00:46]}  e4 {[%clk 0:00:19]} 31. Kd2 {[%clk 0:00:43]}  Ke5 {[%clk 0:00:19]} 32. Rge2 {[%clk 0:00:41]}  Rc7 {[%clk 0:00:18]} 33. Kc1 {[%clk 0:00:32]}  h4 {[%clk 0:00:18]} 34. Re3 {[%clk 0:00:32]}  h3 {[%clk 0:00:18]} 35. b4 {[%clk 0:00:30]}  g5 {[%clk 0:00:19]} 36. Kb2 {[%clk 0:00:29]}  Rf2 {[%clk 0:00:15]} 37. Kb3 {[%clk 0:00:28]}  Rxh2 {[%clk 0:00:15]} 38. Bxe4 {[%clk 0:00:27]}  Bxe4 {[%clk 0:00:16]} 39. Rxe4+ {[%clk 0:00:28]}  Kf5 {[%clk 0:00:17]} 40. Re8 {[%clk 0:00:27]}  g4 {[%clk 0:00:15]} 41. Rf1+ {[%clk 0:00:26]}  Kg5 {[%clk 0:00:15]} 42. Rg8+ {[%clk 0:00:26]}  Kh4 {[%clk 0:00:15]} 43. Rf4 {[%clk 0:00:25]}  Rg2 {[%clk 0:00:15]} 44. c4 {[%clk 0:00:26]}  h2 {[%clk 0:00:14]} 45. Rh8+ {[%clk 0:00:25]}  Kg3 {[%clk 0:00:15]} 46. Rd4 {[%clk 0:00:24]}  Rg1 {[%clk 0:00:14]} 47. Rd3+ {[%clk 0:00:24]}  Kf4 {[%clk 0:00:09]} 48. Rxh2 {[%clk 0:00:23]}  Rg3 {[%clk 0:00:10]} 49. Rc3 {[%clk 0:00:20]}  Rxc3+ {[%clk 0:00:10]} 50. Kxc3 {[%clk 0:00:21]}  g3 {[%clk 0:00:11]} 51. Rh8 {[%clk 0:00:21]}  Rg7 {[%clk 0:00:09]} 52. Rh1 {[%clk 0:00:18]}  g2 {[%clk 0:00:06]} 53. Ra1 {[%clk 0:00:19]}  Kg3 {[%clk 0:00:03]} 54. b5 {[%clk 0:00:18]}  Kh2 {[%clk 0:00:02]} 55. c5 {[%clk 0:00:17]}  Rf7 {[%clk 0:00:02]} 56. Rd1 {[%clk 0:00:16]}  Rf1 {[%clk 0:00:03]} 57. Rd2 {[%clk 0:00:16]}  Rc1+ {[%clk 0:00:02]} 58. Kd4 {[%clk 0:00:16]}  Rb1 {[%clk 0:00:01]} 59. Kc4 {[%clk 0:00:14]}  Rb2 {[%clk 0:00:00]} 60. Rxb2 {[%clk 0:00:12]} 1-0

[Event "November 21 Early 2023"]
[Site "https://www.chess.com"]
[Date "2023.11.21"]
[Round "8"]
[White "Arifarsky"]
[Black "Saravana, Krishnan P."]
[Result "0-1"]
[Board "39"]
[TimeControl "180+1"]
[BlackFideId "5018382"]
[WhiteElo "2798"]
[BlackElo "2167"]
[BlackTeam "IND"]
[WhiteClock "0:00:12"]
[BlackClock "0:00:43"]

1. e4 {[%clk 0:02:57]}  c6 {[%clk 0:02:59]} 2. d3 {[%clk 0:02:55]}  d5 {[%clk 0:02:59]} 3. Nd2 {[%clk 0:02:55]}  g6 {[%clk 0:02:56]} 4. Ngf3 {[%clk 0:02:52]}  Bg7 {[%clk 0:02:56]} 5. c3 {[%clk 0:02:52]}  e5 {[%clk 0:02:55]} 6. Qc2 {[%clk 0:02:48]}  Nd7 {[%clk 0:02:52]} 7. g3 {[%clk 0:02:45]}  Ngf6 {[%clk 0:02:52]} 8. Bg2 {[%clk 0:02:45]}  O-O {[%clk 0:02:52]} 9. O-O {[%clk 0:02:46]}  Re8 {[%clk 0:02:53]} 10. Re1 {[%clk 0:02:44]}  a5 {[%clk 0:02:53]} 11. a4 {[%clk 0:02:44]}  Qc7 {[%clk 0:02:52]} 12. b3 {[%clk 0:02:34]}  dxe4 {[%clk 0:02:44]} 13. dxe4 {[%clk 0:02:34]}  b6 {[%clk 0:02:41]} 14. Ba3 {[%clk 0:02:33]}  Ba6 {[%clk 0:02:41]} 15. c4 {[%clk 0:02:27]}  Nf8 {[%clk 0:02:35]} 16. Rad1 {[%clk 0:02:15]}  Ne6 {[%clk 0:02:35]} 17. Nb1 {[%clk 0:02:15]}  Rad8 {[%clk 0:02:28]} 18. Bb2 {[%clk 0:02:08]}  Nd7 {[%clk 0:02:25]} 19. Bh3 {[%clk 0:02:02]}  Ndc5 {[%clk 0:02:19]} 20. Rxd8 {[%clk 0:01:38]}  Rxd8 {[%clk 0:02:11]} 21. Rd1 {[%clk 0:01:38]}  Nd4 {[%clk 0:02:09]} 22. Nxd4 {[%clk 0:01:23]}  exd4 {[%clk 0:02:09]} 23. Nd2 {[%clk 0:01:23]}  Bc8 {[%clk 0:02:06]} 24. Bg2 {[%clk 0:01:21]}  Bg4 {[%clk 0:02:04]} 25. Re1 {[%clk 0:01:19]}  Qd7 {[%clk 0:01:54]} 26. e5 {[%clk 0:01:01]}  Bf5 {[%clk 0:01:52]} 27. Ne4 {[%clk 0:00:59]}  d3 {[%clk 0:01:36]} 28. Qd1 {[%clk 0:00:56]}  d2 {[%clk 0:01:29]} 29. Re2 {[%clk 0:00:46]}  Bxe4 {[%clk 0:01:23]} 30. Bxe4 {[%clk 0:00:45]}  Nxb3 {[%clk 0:01:01]} 31. Bc3 {[%clk 0:00:46]}  Qe6 {[%clk 0:00:48]} 32. Bc2 {[%clk 0:00:18]}  Qxc4 {[%clk 0:00:43]} 33. Bxb3 {[%clk 0:00:12]}  Qxb3 {[%clk 0:00:43]} 0-1